fUSD/lending_fUSD_20240625
["ID","MTS","AMOUNT","RATE_DAILY","PERIOD"]
[330412768,1719354636803,-500.0,0.00019178,2]
[330412769,1719354636812,-500.0,0.00019178,2]
[330412770,1719354636822,-500.0,0.00019178,2]
[330412771,1719354636832,-500.0,0.00019178,2]
[330412772,1719354636842,-500.0,0.00019178,2]
[330412773,1719354636852,-665.79,0.00019178,2]
[330412774,1719354636863,-500.0,0.00019178,2]
[330412775,1719354636872,-500.0,0.00019178,2]
[330412776,1719354636881,-542.17,0.00019178,2]
[330412777,1719354636891,-1499.34,0.00019178,2]
[330412778,1719354636900,-766.84,0.00019178,2]
[330412779,1719354636909,-500.0,0.00019178,2]
[330412780,1719354636920,-911.87,0.00019178,2]
[330412781,1719354636929,-500.0,0.00019178,2]
[330412782,1719354636938,-500.0,0.00019178,2]
[330412783,1719354636948,-1422.48,0.00019178,2]
[330412784,1719354636958,-1195.75,0.00019178,2]
[330412785,1719354636968,-500.0,0.00019178,2]
[330412786,1719354636978,-500.0,0.00019178,2]
[330412787,1719354636987,-500.0,0.00019178,2]
[330412788,1719354636996,-553.83,0.00019178,2]
[330412789,1719354637006,-1677.33,0.00019178,2]
[330412790,1719354637016,-687.89,0.00019178,2]
[330412791,1719354637025,-500.0,0.00019178,2]
[330412792,1719354637035,-500.0,0.00019178,2]
[330412793,1719354637044,-12592.27,0.00019178,2]
[330412794,1719354637054,-1129.63,0.00019178,2]
[330412795,1719354637063,-500.0,0.00019178,2]
[330412796,1719354637073,-500.0,0.00019178,2]
[330412797,1719354637082,-635.21,0.00019178,2]
[330412798,1719354637092,-959.34,0.00019178,2]
[330412799,1719354637102,-17826.68,0.00019178,2]
[330412800,1719354637111,-947.27,0.00019178,2]
[330412801,1719354637121,-500.0,0.00019178,2]
[330412802,1719354637131,-500.0,0.00019178,2]
[330412803,1719354637140,-1092.73,0.00019178,2]
[330412804,1719354637150,-500.0,0.00019178,2]
[330412805,1719354637159,-500.0,0.00019178,2]
[330412806,1719354637174,-946.96,0.00019178,2]
[330412807,1719354637193,-500.0,0.00019178,2]
[330412808,1719354637202,-500.0,0.00019178,2]
[330412809,1719354637212,-580.42,0.00019178,2]
[330412810,1719354637222,-565.09,0.00019178,2]
[330412811,1719354637232,-500.0,0.00019178,2]
[330412812,1719354637241,-1555.63,0.00019178,2]
[330412813,1719354637252,-500.0,0.00019178,2]
[330412814,1719354637261,-500.0,0.00019178,2]
[330412815,1719354637272,-500.0,0.00019178,2]
[330412816,1719354637284,-582.45,0.00019178,2]
[330412817,1719354637293,-500.0,0.00019178,2]
[330412818,1719354637303,-500.0,0.00019178,2]
[330412819,1719354637312,-1062.82,0.00019178,2]
[330412820,1719354637322,-854.87,0.00019178,2]
[330412821,1719354637332,-500.0,0.00019178,2]
[330412822,1719354637341,-500.0,0.00019178,2]
[330412823,1719354637351,-1226.1,0.00019178,2]
[330412824,1719354637360,-500.0,0.00019178,2]
[330412825,1719354637370,-1938.66,0.00019178,2]
[330412826,1719354637380,-681.79,0.00019178,2]
[330412827,1719354637390,-500.0,0.00019178,2]
[330412828,1719354637399,-2414.37,0.00019178,2]
[330412829,1719354637408,-590.08397684,0.00019178,2]
[330412830,1719354637418,-500.0,0.00019178,2]
[330412831,1719354637428,-783.11,0.00019178,2]
[330412832,1719354637440,-428.50622884,0.00019178,2]
[330412833,1719354637455,-500.0,0.00019178,2]
[330412834,1719354637464,-685.1,0.00019178,2]
[330412835,1719354637474,-500.0,0.00019178,2]
[330412836,1719354637484,-655.91,0.00019178,2]
[330412837,1719354637494,-500.0,0.00019178,2]
[330412838,1719354637504,-2778.42,0.00019178,2]
[330412839,1719354637513,-500.0,0.00019178,2]
[330412840,1719354637525,-718.87,0.00019178,2]
[330412841,1719354637536,-8368.22,0.00019178,2]
[330412842,1719354637546,-1295.71,0.00019178,2]
[330412843,1719354637555,-500.0,0.00019178,2]
[330412844,1719354637565,-1344.28,0.00019178,2]
[330412845,1719354637574,-1469.55,0.00019178,2]
[330412846,1719354637583,-1903.75,0.00019178,2]
[330412847,1719354637592,-500.0,0.00019178,2]
[330412848,1719354637602,-565.32,0.00019178,2]
[330412849,1719354637616,-801.18,0.00019178,2]
[330412850,1719354637625,-767.57,0.00019178,2]
[330412851,1719354637635,-500.0,0.00019178,2]
[330412852,1719354637644,-692.54,0.00019178,2]
[330412853,1719354637654,-500.0,0.00019178,2]
[330412854,1719354637663,-789.29,0.00019178,2]
[330412855,1719354637673,-3004.9,0.00019178,2]
[330412856,1719354637683,-500.0,0.00019178,2]
[330412857,1719354637693,-500.0,0.00019178,2]
[330412858,1719354637702,-500.0,0.00019178,2]
[330412859,1719354637712,-781.95,0.00019178,2]
[330412860,1719354637722,-500.0,0.00019178,2]
[330412861,1719354637731,-500.0,0.00019178,2]
[330412862,1719354637740,-500.0,0.00019178,2]
[330412863,1719354637750,-500.0,0.00019178,2]
[330412864,1719354637759,-545.5,0.00019178,2]
[330412865,1719354637769,-500.0,0.00019178,2]
[330412866,1719354637779,-500.0,0.00019178,2]
[330412867,1719354637788,-500.0,0.00019178,2]
[330412868,1719354637798,-3752.71,0.00019178,2]
[330412869,1719354637807,-574.07,0.00019178,2]
[330412870,1719354637816,-500.0,0.00019178,2]
[330412871,1719354637826,-500.0,0.00019178,2]
[330412872,1719354637836,-500.0,0.00019178,2]
[330412873,1719354637845,-500.0,0.00019178,2]
[330412874,1719354637854,-500.0,0.00019178,2]
[330412875,1719354637864,-1327.1,0.00019178,2]
[330412876,1719354637876,-513.09,0.00019178,2]
[330412877,1719354637885,-500.0,0.00019178,2]
[330412878,1719354637895,-514.51,0.00019178,2]
[330412879,1719354637904,-781.46,0.00019178,2]
[330412880,1719354637913,-3696.6,0.00019178,2]
[330412881,1719354637923,-500.0,0.00019178,2]
[330412882,1719354637932,-773.39,0.00019178,2]
[330412883,1719354637942,-500.0,0.00019178,2]
[330412884,1719354637951,-500.0,0.00019178,2]
[330412885,1719354637960,-1290.98,0.00019178,2]
[330412886,1719354637970,-500.0,0.00019178,2]
[330412887,1719354637980,-500.0,0.00019178,2]
[330412888,1719354637989,-500.0,0.00019178,2]
[330412889,1719354637998,-500.0,0.00019178,2]
[330412890,1719354638008,-500.0,0.00019178,2]
[330412891,1719354638017,-500.0,0.00019178,2]
[330412892,1719354638027,-1398.23,0.00019178,2]
[330412893,1719354638037,-500.0,0.00019178,2]
[330412894,1719354638047,-500.0,0.00019178,2]
[330412895,1719354638056,-500.0,0.00019178,2]
[330412896,1719354638066,-500.0,0.00019178,2]
[330412897,1719354638075,-500.0,0.00019178,2]
[330412898,1719354638085,-626.89,0.00019178,2]
[330412899,1719354638095,-4070.31,0.00019178,2]
[330412900,1719354638104,-500.0,0.00019178,2]
[330412901,1719354638114,-519.35,0.00019178,2]
[330412902,1719354638123,-539.58,0.00019178,2]
[330412903,1719354638133,-500.0,0.00019178,2]
[330412904,1719354638142,-500.0,0.00019178,2]
[330412905,1719354638152,-500.0,0.00019178,2]
[330412906,1719354638162,-500.0,0.00019178,2]
[330412907,1719354638172,-500.0,0.00019178,2]
[330412908,1719354638181,-835.25,0.00019178,2]
[330412909,1719354638191,-500.0,0.00019178,2]
[330412910,1719354638200,-558.29,0.00019178,2]
[330412911,1719354638210,-521.42,0.00019178,2]
[330412912,1719354638220,-500.0,0.00019178,2]
[330412913,1719354638230,-500.0,0.00019178,2]
[330412914,1719354638239,-545.66,0.00019178,2]
[330412915,1719354638250,-2633.37,0.00019178,2]
[330412916,1719354638259,-500.0,0.00019178,2]
[330412917,1719354638269,-1064.04,0.00019178,2]
[330412918,1719354638280,-500.0,0.00019178,2]
[330412919,1719354638289,-798.24,0.00019178,2]
[330412920,1719354638299,-1017.89,0.00019178,2]
[330412921,1719354638308,-500.0,0.00019178,2]
[330412922,1719354638318,-602.49,0.00019178,2]
[330412923,1719354638327,-871.64,0.00019178,2]
[330412924,1719354638337,-500.0,0.00019178,2]
[330412925,1719354638346,-500.0,0.00019178,2]
[330412926,1719354638355,-500.0,0.00019178,2]
[330412927,1719354638365,-1083.65,0.00019178,2]
[330412928,1719354638374,-537.35,0.00019178,2]
[330412929,1719354638384,-5005.61,0.00019178,2]
[330412930,1719354638394,-1446.36,0.00019178,2]
[330412931,1719354638403,-15082.58,0.00019178,2]
[330412932,1719354638413,-726.81,0.00019178,2]
[330412933,1719354638423,-1050.23,0.00019178,2]
[330412934,1719354638433,-919.92,0.00019178,2]
[330412935,1719354638442,-500.0,0.00019178,2]
[330412936,1719354638452,-2633.53,0.00019178,2]
[330412937,1719354638462,-500.0,0.00019178,2]
[330412938,1719354638471,-500.0,0.00019178,2]
[330412939,1719354638481,-2602.36,0.00019178,2]
[330412940,1719354638491,-575.22,0.00019178,2]
[330412941,1719354638501,-598.56,0.00019178,2]
[330412942,1719354638511,-924.09,0.00019178,2]
[330412943,1719354638521,-2587.18,0.00019178,2]
[330412944,1719354638531,-499.66961684,0.00019178,2]
[330412945,1719354638541,-500.0,0.00019178,2]
[330412946,1719354638551,-536.02244971,0.00019178,2]
[330412947,1719354638561,-1398.56,0.00019178,2]
[330412948,1719354638571,-500.0,0.00019178,2]
[330412949,1719354638582,-4446.85,0.00019178,2]
[330412950,1719354638592,-500.0,0.00019178,2]
[330412951,1719354638603,-500.0,0.00019178,2]
[330412952,1719354638617,-9215.85,0.00019178,2]
[330412953,1719354638627,-1241.59,0.00019178,2]
[330412954,1719354638636,-500.0,0.00019178,2]
[330412955,1719354638647,-3743.59,0.00019178,2]
[330412956,1719354638657,-855.61,0.00019178,2]
[330412957,1719354638667,-500.0,0.00019178,2]
[330412958,1719354638677,-527.79,0.00019178,2]
[330412959,1719354638689,-500.0,0.00019178,2]
[330412960,1719354638698,-1702.19,0.00019178,2]
[330412961,1719354638708,-1814.45,0.00019178,2]
[330412963,1719354638718,-500.0,0.00019178,2]
[330412964,1719354638727,-500.0,0.00019178,2]
[330412965,1719354638737,-1158.08,0.00019178,2]
[330412966,1719354638748,-500.0,0.00019178,2]
[330412967,1719354638758,-728.17,0.00019178,2]
[330412968,1719354638767,-500.0,0.00019178,2]
[330412969,1719354638901,-500.0,0.00019178,2]
[330412970,1719354638924,-500.0,0.00019178,2]
[330412971,1719354638934,-1261.27,0.00019178,2]
[330412972,1719354638944,-691.87,0.00019178,2]
[330412973,1719354638953,-864.4,0.00019178,2]
[330412974,1719354638963,-500.0,0.00019178,2]
[330412975,1719354638972,-500.0,0.00019178,2]
[330412976,1719354638982,-1601.29,0.00019178,2]
[330412977,1719354638991,-500.0,0.00019178,2]
[330412978,1719354639004,-500.0,0.00019178,2]
[330412979,1719354639015,-500.0,0.00019178,2]
[330412980,1719354639025,-1508.58,0.00019178,2]
[330412981,1719354639038,-500.0,0.00019178,2]
[330412982,1719354639049,-500.0,0.00019178,2]
[330412983,1719354639059,-562.69205438,0.00019178,2]
[330412984,1719354639069,-500.0,0.00019178,2]
[330412985,1719354639079,-500.0,0.00019178,2]
[330412986,1719354639089,-780.37,0.00019178,2]
[330412987,1719354639099,-500.0,0.00019178,2]
[330412988,1719354639109,-953.63,0.00019178,2]
[330412989,1719354639119,-658.26,0.00019178,2]
[330412990,1719354639129,-500.0,0.00019178,2]
[330412991,1719354639139,-748.98,0.00019178,2]
[330412992,1719354639149,-2451.39,0.00019178,2]
[330412993,1719354639159,-713.37,0.00019178,2]
[330412994,1719354639169,-669.68,0.00019178,2]
[330412995,1719354639179,-1064.9,0.00019178,2]
[330412996,1719354639190,-500.0,0.00019178,2]
[330412997,1719354639200,-630.44,0.00019178,2]
[330412998,1719354639210,-662.75,0.00019178,2]
[330412999,1719354639221,-771.52,0.00019178,2]
[330413000,1719354639232,-568.07,0.00019178,2]
[330413001,1719354639242,-1138.09,0.00019178,2]
[330413002,1719354639253,-3996.45,0.00019178,2]
[330413003,1719354639264,-564.29,0.00019178,2]
[330413004,1719354639275,-633.14,0.00019178,2]
[330413005,1719354639284,-812.34,0.00019178,2]
[330413006,1719354639295,-500.0,0.00019178,2]
[330413007,1719354639305,-730.97,0.00019178,2]
[330413008,1719354639315,-1101.26,0.00019178,2]
[330413009,1719354639325,-912.88,0.00019178,2]
[330413010,1719354639335,-1471.26,0.00019178,2]
[330413011,1719354639345,-500.0,0.00019178,2]
[330413012,1719354639355,-14669.95,0.00019178,2]
[330413013,1719354639364,-500.0,0.00019178,2]
[330413014,1719354639374,-2186.6,0.00019178,2]
[330413015,1719354639383,-1652.4,0.00019178,2]
[330413016,1719354639394,-612.77,0.00019178,2]
[330413017,1719354639404,-500.0,0.00019178,2]
[330413018,1719354639414,-1000.09,0.00019178,2]
[330413019,1719354639423,-736.9,0.00019178,2]
[330413020,1719354639434,-500.0,0.00019178,2]
[330413021,1719354639443,-500.0,0.00019178,2]
[330413022,1719354639453,-707.99,0.00019178,2]
[330413023,1719354639463,-911.87,0.00019178,2]
[330413024,1719354639473,-1857.31,0.00019178,2]
[330413025,1719354639484,-448.74453542,0.00019178,2]
[330413026,1719354639530,-360.35116936,0.00019178,2]
[330413027,1719354639542,-299.99,0.00019178,2]
[330413028,1719354639554,-1356.47305765,0.00019178,2]
[330413029,1719354640388,-978.93123757,0.00019178,2]
[330413030,1719354640398,-363.24530031,0.00019178,2]
[330413031,1719354640410,-89.8052226,0.00019178,2]
[330413032,1719354640420,-174.82081736,0.00019178,2]
[330413033,1719354640445,-325.17918264,0.00019178,2]
[330413034,1719354640455,-579.9,0.00019178,2]
[330413035,1719354640464,-500.0,0.00019178,2]
[330413036,1719354640475,-736.4,0.00019178,2]
[330413037,1719354640485,-690.12456238,0.00019178,2]
[330413038,1719354640498,-136.46543762,0.00019178,2]
[330413039,1719354640508,-500.0,0.00019178,2]
[330413040,1719354640518,-500.0,0.00019178,2]
[330413041,1719354640529,-153.7693027,0.00019178,2]
[330413042,1719354640540,-500.0,0.00019178,2]
[330413043,1719354640551,-500.0,0.00019178,2]
[330413045,1719354640560,-618.83,0.00019178,2]
[330413047,1719354640571,-2374.37263204,0.00019178,2]
[330413049,1719354640583,-7832.93162208,0.00019178,2]
[330413086,1719354640932,-1791.76807849,0.00019178,2]
[330413088,1719354640944,-1040.88766739,0.00019178,2]
[330413090,1719354640953,-500.0,0.00019178,2]
[330413092,1719354640962,-1606.99,0.00019178,2]
[330413094,1719354640972,-500.0,0.00019178,2]
[330413096,1719354640982,-500.0,0.00019178,2]
[330413113,1719354641273,-1108.79,0.00019178,2]
[330413114,1719354641289,-572.03,0.00019178,2]
[330413115,1719354641298,-860.83,0.00019178,2]
[330413116,1719354641308,-668.77,0.00019178,2]
[330413117,1719354641317,-5647.22,0.00019178,2]
[330413118,1719354641326,-3395.45,0.00019178,2]
[330413119,1719354641335,-5455.17,0.00019178,2]
[330413120,1719354641345,-500.0,0.00019178,2]
[330413121,1719354641355,-500.0,0.00019178,2]
[330413122,1719354641364,-250.0,0.00019178,2]
[330413123,1719354641373,-217.78950584,0.00019349,2]
[330413124,1719354641383,-5535.56405568,0.00019352,2]
[330413125,1719354641393,-163.19822535,0.00019352,2]
[330413126,1719354641402,-1735.33959315,0.00019413,2]
[330413127,1719354641412,-543.23,0.00019452,2]
[330413128,1719354641421,-620.2,0.00019452,2]
[330413129,1719354641430,-695.72,0.00019452,2]
[330413130,1719354641440,-826.34,0.00019452,2]
[330413131,1719354641449,-500.0,0.00019452,2]
[330413132,1719354641459,-500.0,0.00019452,2]
[330413133,1719354641468,-500.0,0.00019452,2]
[330413134,1719354641477,-1690.97,0.00019452,2]
[330413135,1719354641486,-500.0,0.00019452,2]
[330413136,1719354641496,-500.0,0.00019452,2]
[330413137,1719354641506,-1136.78,0.00019452,2]
[330413138,1719354641516,-500.0,0.00019452,2]
[330413139,1719354641526,-500.0,0.00019452,2]
[330413140,1719354641536,-500.0,0.00019452,2]
[330413141,1719354641545,-500.0,0.00019452,2]
[330413142,1719354641554,-500.0,0.00019452,2]
[330413143,1719354641563,-4026.69,0.00019452,2]
[330413144,1719354641572,-500.0,0.00019452,2]
[330413145,1719354641582,-500.0,0.00019452,2]
[330413146,1719354641591,-500.0,0.00019452,2]
[330413147,1719354641600,-500.0,0.00019452,2]
[330413148,1719354641613,-347.12887164,0.00019452,2]
[330413149,1719354641622,-8392.03,0.00019452,2]
[330413150,1719354641632,-500.0,0.00019452,2]
[330413151,1719354641641,-500.0,0.00019452,2]
[330413152,1719354641651,-500.0,0.00019452,2]
[330413153,1719354641660,-500.0,0.00019452,2]
[330413154,1719354641670,-500.0,0.00019452,2]
[330413155,1719354641679,-3919.14,0.00019452,2]
[330413156,1719354641689,-500.0,0.00019452,2]
[330413157,1719354641699,-500.0,0.00019452,2]
[330413158,1719354641708,-500.0,0.00019452,2]
[330413159,1719354641718,-500.0,0.00019452,2]
[330413160,1719354641727,-500.0,0.00019452,2]
[330413161,1719354641736,-500.0,0.00019452,2]
[330413162,1719354641745,-500.0,0.00019452,2]
[330413163,1719354641758,-663.49,0.00019452,2]
[330413164,1719354641771,-500.0,0.00019452,2]
[330413165,1719354641780,-500.0,0.00019452,2]
[330413166,1719354641790,-953.17,0.00019452,2]
[330413167,1719354641802,-500.0,0.00019452,2]
[330413168,1719354641812,-500.0,0.00019452,2]
[330413169,1719354641822,-500.0,0.00019452,2]
[330413170,1719354641832,-500.0,0.00019452,2]
[330413171,1719354641841,-500.0,0.00019452,2]
[330413172,1719354641852,-500.0,0.00019452,2]
[330413173,1719354641861,-500.0,0.00019452,2]
[330413174,1719354641871,-500.0,0.00019452,2]
[330413175,1719354641881,-500.0,0.00019452,2]
[330413176,1719354641891,-506.55,0.00019452,2]
[330413177,1719354641902,-500.0,0.00019452,2]
[330413178,1719354641912,-500.0,0.00019452,2]
[330413179,1719354641922,-500.0,0.00019452,2]
[330413180,1719354641932,-500.0,0.00019452,2]
[330413181,1719354641942,-2334.35,0.00019452,2]
[330413182,1719354641951,-500.0,0.00019452,2]
[330413183,1719354641961,-500.0,0.00019452,2]
[330413184,1719354641970,-500.0,0.00019452,2]
[330413185,1719354641980,-500.0,0.00019452,2]
[330413186,1719354641990,-569.72,0.00019452,2]
[330413187,1719354642001,-500.0,0.00019452,2]
[330413188,1719354642010,-714.04,0.00019452,2]
[330413189,1719354642019,-500.0,0.00019452,2]
[330413190,1719354642028,-1168.28,0.00019452,2]
[330413191,1719354642037,-500.0,0.00019452,2]
[330413192,1719354642046,-500.0,0.00019452,2]
[330413193,1719354642056,-7776.46,0.00019452,2]
[330413194,1719354642065,-500.0,0.00019452,2]
[330413195,1719354642075,-500.0,0.00019452,2]
[330413196,1719354642084,-500.0,0.00019452,2]
[330413197,1719354642094,-500.0,0.00019452,2]
[330413198,1719354642103,-500.0,0.00019452,2]
[330413199,1719354642113,-500.0,0.00019452,2]
[330413200,1719354642122,-500.0,0.00019452,2]
[330413201,1719354642132,-500.0,0.00019452,2]
[330413202,1719354642142,-500.0,0.00019452,2]
[330413203,1719354642151,-500.0,0.00019452,2]
[330413204,1719354642160,-500.0,0.00019452,2]
[330413205,1719354642170,-344.6163585,0.00019452,2]
[330413206,1719354642179,-500.0,0.00019452,2]
[330413207,1719354642188,-701.22,0.00019452,2]
[330413208,1719354642197,-500.0,0.00019452,2]
[330413209,1719354642207,-500.0,0.00019452,2]
[330413210,1719354642216,-500.0,0.00019452,2]
[330413211,1719354642225,-500.0,0.00019452,2]
[330413212,1719354642234,-500.0,0.00019452,2]
[330413213,1719354642244,-500.0,0.00019452,2]
[330413214,1719354642254,-851.0,0.00019452,2]
[330413215,1719354642269,-500.0,0.00019452,2]
[330413216,1719354642278,-500.0,0.00019452,2]
[330413217,1719354642287,-502.6,0.00019452,2]
[330413218,1719354642296,-176.20498882,0.00019452,2]
[330413219,1719354642306,-871.96,0.00019452,2]
[330413220,1719354642315,-500.0,0.00019452,2]
[330413221,1719354642324,-500.0,0.00019452,2]
[330413222,1719354642334,-446.31352054,0.00019452,2]
[330413223,1719354642343,-500.0,0.00019452,2]
[330413224,1719354642352,-500.0,0.00019452,2]
[330413225,1719354642361,-1682.11,0.00019452,2]
[330413226,1719354642371,-500.0,0.00019452,2]
[330413227,1719354642380,-500.0,0.00019452,2]
[330413228,1719354642390,-500.0,0.00019452,2]
[330413229,1719354642400,-521.23,0.00019452,2]
[330413230,1719354642410,-500.0,0.00019452,2]
[330413231,1719354642419,-500.0,0.00019452,2]
[330413232,1719354642428,-500.0,0.00019452,2]
[330413233,1719354642437,-500.0,0.00019452,2]
[330413234,1719354642446,-683.33,0.00019452,2]
[330413235,1719354642455,-500.0,0.00019452,2]
[330413236,1719354642465,-1049.37,0.00019452,2]
[330413237,1719354642474,-578.98,0.00019452,2]
[330413238,1719354642484,-500.0,0.00019452,2]
[330413239,1719354642493,-500.0,0.00019452,2]
[330413240,1719354642505,-614.13,0.00019452,2]
[330413241,1719354642515,-500.0,0.00019452,2]
[330413242,1719354642526,-783.4,0.00019452,2]
[330413243,1719354642535,-500.0,0.00019452,2]
[330413244,1719354642545,-500.0,0.00019452,2]
[330413245,1719354642555,-662.04,0.00019452,2]
[330413246,1719354642564,-850.42,0.00019452,2]
[330413247,1719354642573,-507.50150142,0.00019452,2]
[330413248,1719354642583,-500.0,0.00019452,2]
[330413249,1719354642592,-839.43,0.00019452,2]
[330413250,1719354642602,-500.0,0.00019452,2]
[330413251,1719354642613,-669.55,0.00019452,2]
[330413252,1719354642623,-649.29,0.00019452,2]
[330413253,1719354642632,-500.0,0.00019452,2]
[330413254,1719354642642,-500.0,0.00019452,2]
[330413255,1719354642652,-508.91,0.00019452,2]
[330413256,1719354642661,-1422.23,0.00019452,2]
[330413257,1719354642670,-500.0,0.00019452,2]
[330413258,1719354642679,-500.0,0.00019452,2]
[330413259,1719354642690,-504.02,0.00019452,2]
[330413260,1719354642700,-500.0,0.00019452,2]
[330413261,1719354642709,-500.0,0.00019452,2]
[330413262,1719354642719,-812.45,0.00019452,2]
[330413263,1719354642728,-954.51,0.00019452,2]
[330413264,1719354642737,-500.0,0.00019452,2]
[330413265,1719354642747,-719.52,0.00019452,2]
[330413266,1719354642759,-522.8,0.00019452,2]
[330413267,1719354642769,-500.0,0.00019452,2]
[330413268,1719354642778,-500.0,0.00019452,2]
[330413269,1719354642788,-500.0,0.00019452,2]
[330413270,1719354642797,-500.0,0.00019452,2]
[330413271,1719354642807,-500.0,0.00019452,2]
[330413272,1719354642816,-500.0,0.00019452,2]
[330413273,1719354642825,-500.0,0.00019452,2]
[330413274,1719354642835,-500.0,0.00019452,2]
[330413275,1719354642844,-648.91,0.00019452,2]
[330413276,1719354642853,-500.0,0.00019452,2]
[330413277,1719354642863,-500.0,0.00019452,2]
[330413278,1719354642872,-500.0,0.00019452,2]
[330413279,1719354642881,-673.84,0.00019452,2]
[330413280,1719354642890,-602.7,0.00019452,2]
[330413281,1719354642899,-500.0,0.00019452,2]
[330413282,1719354642908,-604.51,0.00019452,2]
[330413283,1719354642918,-1690.08,0.00019452,2]
[330413284,1719354642927,-636.05,0.00019452,2]
[330413285,1719354642937,-500.0,0.00019452,2]
[330413286,1719354642946,-500.0,0.00019452,2]
[330413287,1719354642955,-855.62,0.00019452,2]
[330413288,1719354642965,-500.0,0.00019452,2]
[330413289,1719354642974,-500.0,0.00019452,2]
[330413290,1719354642983,-500.0,0.00019452,2]
[330413291,1719354642993,-500.0,0.00019452,2]
[330413292,1719354643003,-533.23,0.00019452,2]
[330413293,1719354643013,-500.0,0.00019452,2]
[330413294,1719354643022,-500.0,0.00019452,2]
[330413295,1719354643032,-500.0,0.00019452,2]
[330413297,1719354643040,-1313.99,0.00019452,2]
[330413299,1719354643051,-500.0,0.00019452,2]
[330413300,1719354643060,-500.0,0.00019452,2]
[330413302,1719354643070,-895.99,0.00019452,2]
[330413304,1719354643079,-785.27,0.00019452,2]
[330413306,1719354643088,-500.0,0.00019452,2]
[330413308,1719354643097,-500.0,0.00019452,2]
[330413310,1719354643107,-500.0,0.00019452,2]
[330413312,1719354643116,-500.0,0.00019452,2]
[330413314,1719354643126,-500.0,0.00019452,2]
[330413316,1719354643136,-500.0,0.00019452,2]
[330413318,1719354643145,-500.0,0.00019452,2]
[330413319,1719354643155,-500.0,0.00019452,2]
[330413320,1719354643164,-1462.95,0.00019452,2]
[330413321,1719354643173,-995.13,0.00019452,2]
[330413322,1719354643183,-500.0,0.00019452,2]
[330413323,1719354643193,-1444.4,0.00019452,2]
[330413324,1719354643204,-500.0,0.00019452,2]
[330413325,1719354643213,-500.0,0.00019452,2]
[330413326,1719354643223,-500.0,0.00019452,2]
[330413327,1719354643232,-534.36,0.00019452,2]
[330413329,1719354643242,-500.0,0.00019452,2]
[330413330,1719354643253,-518.41,0.00019452,2]
[330413331,1719354643262,-500.0,0.00019452,2]
[330413332,1719354643271,-500.0,0.00019452,2]
[330413333,1719354643281,-500.0,0.00019452,2]
[330413334,1719354643290,-500.0,0.00019452,2]
[330413335,1719354643301,-656.28,0.00019452,2]
[330413336,1719354643311,-500.0,0.00019452,2]
[330413337,1719354643320,-588.19,0.00019452,2]
[330413338,1719354643330,-619.04,0.00019452,2]
[330413339,1719354643339,-500.0,0.00019452,2]
[330413340,1719354643349,-500.0,0.00019452,2]